[Event "44th Chess Olympiad Women 2022"]
[Site "Chennai"]
[Date "2022.08.03"]
[Round "6.7"]
[White "Yao, Lan"]
[Black "Sargsyan, Anna M."]
[Result "0-1"]
[WhiteElo "2274"]
[BlackElo "2378"]
[Annotator "TA"]
[PlyCount "118"]
[EventDate "2022.??.??"]
[TimeControl "60"]

{[%evp 10,118,30,8,8,1,6,0,1,0,31,26,40,46,30,18,30,37,94,27,40,21,30,0,0,0,0,
-5,37,37,38,41,35,29,47,53,77,67,153,-78,-72,-68,-74,-98,-118,-104,-45,-67,-68,
-100,-97,-115,0,0,0,-22,-14,-18,-12,-47,-51,-85,-60,-71,-8,-103,-111,-153,-114,
-188,-168,-177,-168,-228,-217,-239,-239,-239,-239,-232,-232,-353,-349,-319,
-291,-306,-331,-504,-504,-516,-519,-483,-467,-5883,-6070,-6342,-29966,-29975,
-29973,-29974,-5834,-29988,-29989,-29989,-29990,-29991,-29992,-29995,-29996,
-29996,-29997]} 1. e4 {[%emt 0:00:01]} e5 {[%emt 0:00:09]} 2. Nf3 {[%emt 0:00:
00]} Nc6 {[%emt 0:00:10]} 3. Bc4 {[%emt 0:00:03]} Bc5 {[%emt 0:00:06]} 4. c3 {
[%emt 0:00:04]} Nf6 {[%emt 0:00:07]} 5. d3 {[%emt 0:00:03]} d6 {[%emt 0:00:07]}
6. Bb3 {[%emt 0:00:09]} a5 {[%emt 0:00:17] C54: Giuoco Piano: 4 c3 Nf6, main
lines with 5 d4 and 5 d3.} 7. Nbd2 {[%emt 0:00:28][%cal Yb1d2,Yd2f1,Yf1g3,
Yg3h5]} O-O {[%emt 0:01:57]} 8. O-O {[%emt 0:00:10]} Ba7 {[%emt 0:00:00] The
position is equal.} 9. h3 {[%emt 0:00:11]} Ne7 {[%emt 0:00:59]} 10. Re1 {
[%emt 0:07:30]} Ng6 {[%emt 0:00:29][%cal Yc8h3]} 11. Nf1 {[%emt 0:00:57] [#]}
Bd7 $146 {[%emt 0:01:46]} ({Predecessor:} 11... Nh5 12. Bg5 Qe8 13. Nxe5 Nxe5
14. d4 Nf6 15. Bxf6 gxf6 16. dxe5 Qxe5 17. Qf3 Be6 {½-½ (51) Praggnanandhaa,
R (2539)-Korobov,A (2699) Wijk aan Zee 2019}) 12. Ng3 {[%emt 0:00:40]} Qc8 {
[%emt 0:02:12][%cal Ya5a4]} 13. d4 {[%emt 0:22:06]} Re8 {[%emt 0:12:25]} (13...
a4 $14 14. Bc4 (14. Bxa4 Bxa4 15. Qxa4 Bxd4 $11) 14... h6) 14. Ng5 {[%emt 0:00:
00]} (14. Bg5 $16) 14... Re7 {[%emt 0:02:56]} 15. Nh5 {[%emt 0:03:24] Black
must now prevent Nxf6+.} Qf8 {[%emt 0:30:20][%cal Ya5a4]} 16. Qf3 {[%emt 0:00:
00]} Ne8 {[%emt 0:03:51]} 17. Qd3 {[%emt 0:09:02]} a4 {[%emt 0:03:40]} 18. Bc2
{[%emt 0:00:26]} Nf6 {[%emt 0:06:57]} 19. Nxf6+ {[%emt 0:00:58]} gxf6 {[%emt 0:
00:00]} 20. Nf3 {[%emt 0:00:05]} Qg7 {[%emt 0:01:44]} 21. Kh2 {[%emt 0:00:16]}
Kh8 {[%emt 0:03:39]} 22. Be3 {[%emt 0:02:31]} Rg8 {[%emt 0:07:50]} 23. Rg1 {
[%emt 0:00:45]} (23. g4 h5 24. Rh1 (24. gxh5 $2 Nf4 $17) 24... d5 25. dxe5 (25.
exd5 $2 e4 $19) 25... dxe4 26. exf6 Qxf6 $17) 23... f5 {[%emt 0:01:50]} (23...
Nf4 $14 24. Bxf4 exf4) 24. dxe5 $2 {[%emt 0:01:59]} (24. exf5 $16 {is forced
if you want to stay better.} exd4 25. cxd4 (25. fxg6 dxe3 26. Rae1 Rge8 $17) (
25. Bxd4 Bxd4 26. Nxd4 c5 $16)) 24... fxe4 {[%emt 0:05:56]} (24... Nxe5 {
is interesting.} 25. Nxe5 fxe4 26. Nxf7+ Rxf7 27. Qe2 Bxe3 28. Qxe3 Qf6) 25.
Qxe4 {[%emt 0:00:13]} Bc6 {[%emt 0:00:55]} 26. Qf5 {[%emt 0:04:12]} Bxe3 {
[%emt 0:00:53]} 27. fxe3 {[%emt 0:00:18]} Bxf3 {[%emt 0:02:47]} ({Better is} 
27... Nxe5 $17 {And now ...Re6 would win.} 28. Qf4 Ng6 29. Bxg6 fxg6) 28. Qxf3
{[%emt 0:00:48]} (28. gxf3 Rxe5 29. Qg4 a3 $17) 28... Qxe5+ {[%emt 0:01:02]} (
28... Nxe5 29. Qf4 $11) 29. Kh1 {[%emt 0:00:42]} Nh4 $1 {[%emt 0:03:01]} 30.
Qf2 {[%emt 0:01:04]} Qg5 {[%emt 0:01:11] Black is more active.} (30... Rg3 $17
{aiming for ...f5.} 31. Bxa4 f6) 31. Raf1 $11 {[%emt 0:01:09][%cal Ya1f1,Yf1f6,
Yf6f4]} b5 {[%emt 0:01:25]} 32. Qf6+ {[%emt 0:00:39]} Qxf6 {[%emt 0:00:00]} 33.
Rxf6 {[%emt 0:00:02]} Rg3 {[%emt 0:00:19]} 34. Rf4 {[%emt 0:00:48]} (34. c4 $5)
34... Ng6 {[%emt 0:00:53]} 35. Bxg6 {[%emt 0:00:15]} fxg6 $15 {[%emt 0:00:20]
Endgame KRR-KRR} 36. Rb4 {[%emt 0:00:42]} c6 {[%emt 0:00:26]} (36... Rgxe3 $17
{Strongly threatening ...c6.} 37. Rxb5 a3) 37. e4 {[%emt 0:00:26]} (37. c4 $1
$11 {was the only way to keep the balance.}) 37... Rd3 {[%emt 0:00:48] Black
converts the advantage convincingly.} 38. Re1 {[%emt 0:00:47]} d5 {[%emt 0:00:
21]} 39. e5 {[%emt 0:00:23]} (39. Rd4 $17 Rxe4 40. Rexe4 dxe4 41. Rxe4) 39...
Rd2 $1 $19 {[%emt 0:00:06]} 40. Kh2 {[%emt 0:00:00]} Kg7 {[%emt 0:00:31]} 41.
h4 {[%emt 0:15:09]} (41. Kg3 $142) 41... Rf2 {[%emt 0:04:31]} 42. Kg3 {[%emt 0:
11:11] [#]} Rf5 {[%emt 0:00:06]} 43. b3 {[%emt 0:00:53]} ({Much weaker is} 43.
e6 Kf6 44. Rd4 Rxe6) 43... axb3 {[%emt 0:00:00]} ({Not} 43... Rexe5 44. Rxe5
Rxe5 45. bxa4 $15) 44. axb3 {[%emt 0:00:05]} Rexe5 {[%emt 0:01:03]} ({Worse is
} 44... Rfxe5 45. Rxe5 Rxe5 46. Kf3) 45. Rc1 {[%emt 0:02:16]} (45. Rxe5 $142
Rxe5 46. Kf3) 45... Re3+ {[%emt 0:00:28]} 46. Kh2 {[%emt 0:00:04]} Rf2 {
[%emt 0:03:01]} 47. Rg4 {[%emt 0:00:37]} h5 {[%emt 0:00:00]} 48. Rg5 {[%emt 0:
00:39]} (48. Rg3 $142 Re4 49. Kg1) 48... Rf4 {[%emt 0:00:00]} 49. g3 {[%emt 0:
01:50]} Rf2+ {[%emt 0:00:38]} 50. Kh1 {[%emt 0:01:27]} Ree2 {[%emt 0:03:09]}
51. c4 {[%emt 0:00:45]} (51. Kg1 $142) 51... bxc4 {[%emt 0:00:21]} 52. bxc4 {
[%emt 0:00:02]} d4 {[%emt 0:00:13][%cal Yd5d4,Yd4d3,Yd3d2]} 53. Ra5 {[%emt 0:
01:15]} d3 {[%emt 0:00:05]} 54. Ra7+ {[%emt 0:00:49]} Kf6 {[%emt 0:00:19]} (
54... Kh6 $142 55. Rb1 d2 56. Kg1 Rg2+ 57. Kh1 Rxg3 58. Raa1 Rg4 59. c5 Rxh4+
60. Kg1 Rhh2 61. Rb4 h4 62. Rd1 g5 63. Rb8 h3 64. Rh8+ Kg6 65. Rxh3 Rxh3 66.
Rf1 Re1 67. Kg2 {[#]} d1=Q $1 68. Rf6+ Kxf6 69. Kxh3 Qf3+ 70. Kh2 Rh1#) 55.
Raa1 {[%emt 0:00:25]} d2 {[%emt 0:00:16] Black mates.} 56. Rd1 {[%emt 0:00:02]}
Kf5 {[%emt 0:00:10]} 57. Kg1 {[%emt 0:00:00]} Kg4 {[%emt 0:00:24]} 58. Ra5 {
[%emt 0:00:44]} Rg2+ {[%emt 0:00:06]} 59. Kh1 {[%emt 0:00:12]} Kh3 {[%emt 0:00:
09] Weighted Error Value: White=0.58/ Black=0.20 (precise)} 0-1

[Event "44th Chess Olympiad Women 2022"]
[Site "Chennai"]
[Date "2022.08.03"]
[Round "6.8"]
[White "Movsesian, Julia"]
[Black "Vantika Agrawal"]
[Result "1/2-1/2"]
[WhiteElo "2291"]
[BlackElo "2371"]
[Annotator "TA"]
[PlyCount "105"]
[EventDate "2022.??.??"]
[TimeControl "60"]

{[%evp 22,105,6,0,8,10,30,24,44,14,26,23,31,38,36,38,34,43,38,37,52,10,8,10,10,
-7,0,0,6,-4,0,-26,-14,-67,-35,-52,-37,-70,-70,-70,-70,-70,-70,-70,-49,-70,-51,
-70,-49,-70,-65,-70,0,0,0,-70,-70,-70,-70,-70,-70,-70,-70,-70,0,-70,-70,-70,
-70,-70,-70,-70,0,-70,-56,-70,-70,-70,-70,-70,-70,-70,0,-70,0,-70]} 1. e4 {
[%emt 0:00:02]} c5 {[%emt 0:00:36]} 2. Nc3 {[%emt 0:00:06]} Nc6 {[%emt 0:00:14]
} 3. Bb5 {[%emt 0:00:08]} Nd4 {[%emt 0:00:20]} 4. Nf3 {[%emt 0:00:11]} e6 {
[%emt 0:00:53]} 5. O-O {[%emt 0:00:56]} a6 {[%emt 0:00:47]} 6. Bd3 {[%emt 0:00:
00]} Nc6 {[%emt 0:00:39]} 7. Be2 {[%emt 0:01:04]} Qc7 {[%emt 0:23:52]} 8. d4 {
[%emt 0:10:32]} cxd4 {[%emt 0:00:11]} 9. Nxd4 {[%emt 0:00:04]} Nf6 {[%emt 0:00:
00]} 10. Kh1 {[%emt 0:15:13]} Nxd4 {[%emt 0:08:01]} 11. Qxd4 {[%emt 0:00:09]}
Bc5 {[%emt 0:00:46]} 12. Qd3 {[%emt 0:01:28]} O-O {[%emt 0:12:46] B47:
Sicilian: Taimanov: 5 Nc3 Qc7 6 f4, 6 g3 and 6 Be2.} 13. Bg5 {[%emt 0:03:34]}
b5 {[%emt 0:08:51]} 14. f4 {[%emt 0:07:57]} Ne8 {[%emt 0:12:09] [#] White has
an edge.} 15. e5 $146 {[%emt 0:03:06]} ({Predecessor:} 15. Qh3 Bb7 16. Bd3 f6
17. e5 f5 18. Bh4 Rf7 19. Bf2 Rc8 20. Qg3 Qb6 21. Rae1 Nc7 22. Bxc5 Qxc5 {
½-½ (20) Bobek,D (1694)-Strakos,T (1814) Hrdonov 2013}) 15... Bb7 {[%emt 0:
00:00]} 16. Ne4 {[%emt 0:03:21]} Bxe4 {[%emt 0:02:08]} 17. Qxe4 {[%emt 0:00:05]
} d5 {[%emt 0:00:20]} 18. Qf3 {[%emt 0:02:37]} Be7 {[%emt 0:03:25]} 19. Bxe7 {
[%emt 0:05:22]} Qxe7 {[%emt 0:00:05]} 20. Bd3 {[%emt 0:00:03]} g6 {[%emt 0:00:
00]} 21. Qh3 {[%emt 0:01:39]} Ng7 {[%emt 0:01:30]} 22. Rae1 {[%emt 0:03:57]} h5
{[%emt 0:03:17]} 23. Qf3 {[%emt 0:06:03]} Rfd8 {[%emt 0:00:34]} 24. Re2 {
[%emt 0:02:16]} b4 {[%emt 0:01:29]} 25. Rfe1 {[%emt 0:03:39]} a5 {[%emt 0:00:
00]} 26. b3 {[%emt 0:01:07]} a4 {[%emt 0:00:38]} 27. h3 {[%emt 0:00:05]} (27.
Rg1 $11) 27... axb3 {[%emt 0:00:27]} 28. axb3 {[%emt 0:00:05]} h4 $1 {[%emt 0:
00:00]} 29. Kh2 {[%emt 0:01:51]} Nh5 {[%emt 0:00:45]} 30. Qg4 {[%emt 0:02:47]}
Ng3 {[%emt 0:01:36] Prevents f5.} 31. Re3 {[%emt 0:02:46]} Kg7 {[%emt 0:02:02]}
32. Rf3 {[%emt 0:03:19]} Kf8 {[%emt 0:01:23]} 33. Rf2 {[%emt 0:01:19]} Ra5 {
[%emt 0:00:36]} 34. Rd2 {[%emt 0:03:21]} Rda8 {[%emt 0:00:22]} 35. Rdd1 {
[%emt 0:01:28]} R8a7 {[%emt 0:01:05]} 36. Qf3 {[%emt 0:01:09]} Qc5 {[%emt 0:00:
00]} (36... Kg7 $15) 37. Qg4 $11 {[%emt 0:04:49]} Qe7 {[%emt 0:00:17]} (37...
Qf2 $11) 38. Qf3 $15 {[%emt 0:00:26]} Kg7 {[%emt 0:00:36]} 39. Qg4 {[%emt 0:00:
00]} Ra8 {[%emt 0:00:33]} 40. Rc1 {[%emt 0:01:12]} Ra2 {[%emt 0:00:33]} 41.
Rcd1 {[%emt 0:30:42]} Rc8 {[%emt 0:16:14]} 42. Ra1 {[%emt 0:00:00]} Rca8 {
[%emt 0:02:47]} 43. Rad1 {[%emt 0:00:00]} R8a7 {[%emt 0:03:29]} 44. Rc1 {
[%emt 0:00:00]} Kf8 {[%emt 0:06:04]} 45. Qf3 {[%emt 0:00:00]} Kg8 {[%emt 0:00:
00]} 46. Qg4 {[%emt 0:00:00]} Kf8 {[%emt 0:00:53]} (46... Kg7 $15) 47. Rcd1 {
[%emt 0:00:00]} (47. Qf3 $1 $11) 47... Ra8 {[%emt 0:00:45]} 48. Rc1 {[%emt 0:
00:00]} R2a7 {[%emt 0:01:16]} 49. Rcd1 {[%emt 0:00:00]} Kg7 {[%emt 0:00:09]}
50. Rc1 {[%emt 0:00:00]} Rh8 {[%emt 0:00:28]} 51. Ra1 {[%emt 0:00:00]} Rha8 {
[%emt 0:00:50]} 52. Rac1 {[%emt 0:00:00]} Rh8 {[%emt 0:00:40]} 53. Ra1 {
[%emt 0:00:00] Weighted Error Value: White=0.11 (very precise) /Black=0.12 
(very precise)} 1/2-1/2

[Event "44th Chess Olympiad Women 2022"]
[Site "Chennai"]
[Date "2022.08.03"]
[Round "6.8"]
[White "Padmini, Rout"]
[Black "Worek, Joanna"]
[Result "1/2-1/2"]
[WhiteElo "2374"]
[BlackElo "2280"]
[Annotator "TA"]
[PlyCount "96"]
[EventDate "2022.??.??"]
[TimeControl "60"]

{[%evp 9,96,7,21,18,14,13,12,8,8,8,31,39,23,34,24,25,29,-22,-25,-32,-16,-54,
-43,-85,-82,-97,-42,-62,-74,-77,-40,-55,-31,-48,-35,-50,-38,-86,-78,-89,-96,
-87,-53,-64,-22,-31,-21,-93,-22,-10,-17,-72,-6,-7,0,-20,-18,-17,-10,-52,-39,
-52,0,0,0,0,0,0,0,0,0,0,0,0,0,0,0,0,0,0,0,0,0,0,0,0,0,0,0]} 1. Nf3 {[%emt 0:00:
00]} d5 {[%emt 0:00:07]} 2. g3 {[%emt 0:00:18]} Bg4 {[%emt 0:00:06]} 3. Bg2 {
[%emt 0:00:30]} Nd7 {[%emt 0:01:21]} 4. d4 {[%emt 0:02:03]} e6 {[%emt 0:00:53]}
5. h3 {[%emt 0:02:45]} Bh5 {[%emt 0:01:02]} 6. O-O {[%emt 0:00:53] A07: Réti
Opening: New York and Capablanca Systems.} Be7 {[%emt 0:02:39]} 7. c4 {[%emt 0:
00:00]} c6 {[%emt 0:00:05]} 8. cxd5 {[%emt 0:02:00]} exd5 {[%emt 0:00:08]} 9.
Nc3 {[%emt 0:01:54]} Ngf6 {[%emt 0:00:08]} (9... Bxf3 $5 10. exf3 (10. Bxf3
Ngf6 $11) 10... Ngf6 $14) 10. Ne5 {[%emt 0:02:31]} Nxe5 {[%emt 0:04:54]} 11.
dxe5 {[%emt 0:00:06]} Nd7 {[%emt 0:00:04]} 12. f4 {[%emt 0:17:54]} f5 {[%emt 0:
00:00] [#] Prevents g4.} 13. exf6 $146 {[%emt 0:10:18]} (13. Kh2 $142) ({
Predecessor:} 13. g4 Bg6 14. Be3 O-O 15. Qb3 Nc5 16. Qd1 Ne6 17. Nxd5 cxd5 18.
Qxd5 Bf7 19. gxf5 Nxf4 20. Qxd8 Nxe2+ {0-1 (56) Hansen,S (2525)-Zhigalko,S 
(2572) Chess.com INT 2022}) 13... Qb6+ $11 {[%emt 0:04:59]} 14. Kh2 {[%emt 0:
00:00]} Nxf6 {[%emt 0:00:29]} 15. g4 {[%emt 0:03:02]} Bf7 {[%emt 0:05:36]} 16.
e4 {[%emt 0:04:54]} dxe4 {[%emt 0:07:37]} 17. Nxe4 {[%emt 0:00:26]} Nd5 {
[%emt 0:00:27]} (17... Nxe4 $17 18. Bxe4 Bc5) 18. Qf3 {[%emt 0:06:15]} O-O-O $1
{[%emt 0:04:13][%cal Ya8d8,Yd8d7,Yd7e7]} 19. Qf2 {[%emt 0:02:45]} Qxf2 {
[%emt 0:02:48]} 20. Rxf2 {[%emt 0:00:12]} Rhe8 {[%emt 0:05:46]} 21. Bd2 {
[%emt 0:04:08]} Rd7 {[%emt 0:08:49]} 22. a3 {[%emt 0:02:21]} Bd8 {[%emt 0:00:
00]} 23. Rc1 {[%emt 0:07:44]} (23. Re1 $1 $15 {feels stronger.}) 23... Bc7 {
[%emt 0:02:03]} 24. Nc5 {[%emt 0:07:03]} Rde7 {[%emt 0:00:32]} 25. Kg1 {
[%emt 0:01:32]} Bb6 {[%emt 0:09:40]} (25... Ne3 {feels hotter.} 26. Bxe3 Rxe3
27. Nxb7 Kxb7 28. Bxc6+ Kb6) 26. b4 {[%emt 0:00:35]} Bc7 {[%emt 0:06:49]} 27.
Bf1 {[%emt 0:02:27]} Nf6 {[%emt 0:03:09]} 28. Bg2 {[%emt 0:05:56]} (28. Bd3 $11
) 28... Bd5 {[%emt 0:03:25]} (28... Nd7 $17) 29. Bxd5 {[%emt 0:03:08]} Nxd5 {
[%emt 0:00:02]} 30. Kg2 {[%emt 0:03:58]} (30. f5 $11 {remains equal.}) 30...
Bd6 {[%emt 0:04:51]} (30... g6 $17) 31. f5 {[%emt 0:01:27]} Bxc5 {[%emt 0:00:
00]} 32. bxc5 {[%emt 0:01:39]} Kd7 {[%emt 0:00:14]} 33. Bc3 {[%emt 0:00:56]} b6
{[%emt 0:01:24]} 34. f6 {[%emt 0:01:06]} gxf6 {[%emt 0:00:15]} 35. Bxf6 {
[%emt 0:00:22]} Nxf6 {[%emt 0:05:49]} (35... Re2 $15 36. Bd4 Nf4+ 37. Kf3 R2e4)
36. Rxf6 $15 {[%emt 0:00:05] Endgame KRR-KRR. The position is equal.} Re2+ {
[%emt 0:00:23]} 37. Kg3 {[%emt 0:01:10]} R8e3+ {[%emt 0:00:32]} 38. Kh4 {
[%emt 0:01:40]} Rh2 {[%emt 0:01:46]} 39. cxb6 {[%emt 0:00:24]} Rhxh3+ {[%emt 0:
01:29]} 40. Kg5 {[%emt 0:00:04] [#] Threatens to win with Rd1+.} axb6 {[%emt 0:
00:08]} 41. Rfxc6 {[%emt 0:32:23]} h5 {[%emt 0:10:32]} 42. Rc7+ {[%emt 0:00:00]
} Kd6 {[%emt 0:00:52]} 43. gxh5 {[%emt 0:00:00]} Re5+ {[%emt 0:00:00]} 44. Kg4
{[%emt 0:00:00]} Rexh5 {[%emt 0:00:20]} 45. R7c6+ {[%emt 0:00:00]} Kd5 {
[%emt 0:00:16]} 46. Rxb6 {[%emt 0:00:00] [#] White wants to mate with Rb5+.}
R5h4+ {[%emt 0:00:07]} 47. Kg5 {[%emt 0:00:00]} Rh5+ {[%emt 0:00:00]} 48. Kg4 {
[%emt 0:00:00] Rb5+ is the strong threat.} R5h4+ {[%emt 0:00:05] Weighted
Error Value: White=0.15 (very precise) /Black=0.13 (very precise)} 1/2-1/2

[Event "44th Chess Olympiad Women 2022"]
[Site "Chennai"]
[Date "2022.08.03"]
[Round "6.8"]
[White "Pilsova, Karolina"]
[Black "Gomes, Mary Ann"]
[Result "1/2-1/2"]
[WhiteElo "2230"]
[BlackElo "2324"]
[Annotator "TA"]
[PlyCount "82"]
[EventDate "2022.??.??"]
[TimeControl "60"]

{[%evp 21,82,29,34,27,46,49,91,89,75,86,76,35,77,9,37,31,56,30,36,26,31,37,42,
20,57,7,7,7,113,109,100,112,103,112,103,56,611,611,611,553,611,611,692,270,270,
270,270,270,270,-10,-10,-10,-10,-10,0,0,0,0,0,0,0,0,0]} 1. Nf3 {[%emt 0:00:04]}
Nf6 {[%emt 0:00:22]} 2. c4 {[%emt 0:00:07]} c5 {[%emt 0:00:18]} 3. Nc3 {
[%emt 0:00:18]} g6 {[%emt 0:00:31]} 4. e4 {[%emt 0:00:37]} d6 {[%emt 0:01:59]}
5. d4 {[%emt 0:00:27]} cxd4 {[%emt 0:03:36]} 6. Nxd4 {[%emt 0:00:08]} Bg7 {
[%emt 0:00:05]} 7. Be2 {[%emt 0:01:29]} O-O {[%emt 0:00:09]} 8. Be3 {[%emt 0:
00:00]} Bd7 {[%emt 0:00:28]} 9. O-O {[%emt 0:00:33]} Nc6 {[%emt 0:00:07]} 10.
h3 {[%emt 0:00:26]} Nxd4 {[%emt 0:00:34]} 11. Bxd4 {[%emt 0:00:06]} Bc6 {
[%emt 0:00:05]} 12. Qc2 {[%emt 0:00:44] B38: Sicilian: Maroczy Bind with 5...
Bg7 and 7...0-0.} Rc8 {[%emt 0:02:07]} 13. Rad1 {[%emt 0:01:56]} (13. Bxa7 b6
14. a4 Qc7 $19) 13... Nd7 {[%emt 0:06:08]} 14. Bxg7 {[%emt 0:09:33] White is
better.} (14. Bxa7 $2 b6 15. Bg4 Ra8 16. Bxd7 Bxd7 17. Bxb6 Qxb6 $19) 14...
Kxg7 {[%emt 0:00:10]} 15. b4 {[%emt 0:02:11] Prevents Qa5.} b6 {[%emt 0:00:05]}
16. Bg4 {[%emt 0:23:28] [#]} h5 $146 {[%emt 0:23:23]} ({Predecessor:} 16... Rc7
17. f4 Qa8 18. Qd3 Kg8 19. Bxd7 Rxd7 20. f5 Kg7 21. Rf3 Rc7 22. f6+ Kg8 {
0-1 (36) Eizaguerri Floris,M (2328)-Padmini,R (2380) Riga 2021}) 17. Bxd7 {
[%emt 0:05:16] White is more active.} ({Better is} 17. Be2 $1 $16) 17... Bxd7 {
[%emt 0:04:44]} 18. Nd5 {[%emt 0:00:54]} Be6 {[%emt 0:04:48]} 19. Qb2+ {
[%emt 0:06:54]} (19. f4 {seems wilder.} Bxd5 20. exd5 e6 21. dxe6 fxe6 22. Qe4)
19... Kh7 {[%emt 0:04:32]} 20. Rd4 {[%emt 0:01:46]} Bxd5 {[%emt 0:03:20]} 21.
exd5 {[%emt 0:00:53]} Qd7 {[%emt 0:00:14]} 22. Qe2 {[%emt 0:04:04]} Rc7 {
[%emt 0:02:02]} 23. f4 {[%emt 0:02:24]} ({White should play} 23. Re1 $14) 23...
Qf5 $1 $11 {[%emt 0:05:47]} 24. Re4 {[%emt 0:03:42]} b5 {[%emt 0:04:38]} (24...
Rfc8 $11) 25. c5 $1 $16 {[%emt 0:05:40]} (25. Rxe7 $6 Rxc4 26. Qe6 Qxe6 27.
dxe6 Kg8 $14) 25... dxc5 {[%emt 0:02:29]} 26. Rxe7 {[%emt 0:00:55]} Rxe7 {
[%emt 0:15:25]} 27. Qxe7 {[%emt 0:00:06] Endgame KQR-KQR} Kg7 {[%emt 0:02:30]}
(27... Rc8 $2 28. d6 $18) 28. d6 {[%emt 0:05:30]} ({Of course not} 28. Qxa7 $6
Rd8 $11) ({Don't do} 28. bxc5 Qxd5 29. f5 (29. Qxa7 Ra8 $17) 29... Rc8 $14) (
28. Qxc5 $16 {Hoping for d6.} Rc8 29. Qd4+ (29. Qxa7 Qxd5 30. Qf2 Qe4 $14) (29.
Qxb5 Rc2 $14) 29... Qf6 30. Qxa7) 28... cxb4 $2 {[%emt 0:00:00]} (28... c4 $14)
29. d7 $18 {[%emt 0:05:51]} Qf6 {[%emt 0:04:12]} 30. Qe8 {[%emt 0:01:51]} Qd8 {
[%emt 0:06:05] [#]} 31. Re1 {[%emt 0:00:17]} a5 {[%emt 0:02:41][%cal Ya7a5,
Ya5a4,Ya4b3]} 32. Kh1 $2 {[%emt 0:01:16]} (32. Re7 {[%cal Ye7f7] aiming for
Rxf7+!} Kh6 33. g4 hxg4 34. hxg4) 32... a4 {[%emt 0:01:27]} 33. Re7 {[%emt 0:
00:16][%cal Ye7f7]} b3 {[%emt 0:01:05]} 34. axb3 {[%emt 0:12:07]} axb3 {
[%emt 0:00:32] [#] ...b2 is the strong threat.} 35. Re1 $2 {[%emt 0:03:49]} (
35. Rxf7+ $1 $18 Rxf7 36. Qxd8) 35... b2 $36 {[%emt 0:00:31][%cal Yf8e8] Black
is pushing. The position is equal.} 36. Qe5+ {[%emt 0:00:21]} Qf6 {[%emt 0:00:
15] And now ...Qxe5 would win.} 37. Qxb5 {[%emt 0:01:10]} Rd8 {[%emt 0:00:12]
Strongly threatening ... Qc3.} 38. Rb1 $1 {[%emt 0:00:38]} Qd4 {[%emt 0:00:59]}
39. Qxb2 {[%emt 0:00:41]} Qxb2 {[%emt 0:00:29]} 40. Rxb2 {[%emt 0:00:07]} Rxd7
{[%emt 0:00:04]} 41. g3 {[%emt 0:30:42]} Rd3 {[%emt 0:30:54] Black defended
with fortune. Weighted Error Value: White=0.32/Black=0.37} 1/2-1/2

[Event "44th Chess Olympiad Women 2022"]
[Site "Chennai"]
[Date "2022.08.03"]
[Round "6.9"]
[White "Gaal, Zsoka"]
[Black "Bach, Ngoc Thuy Duong"]
[Result "1-0"]
[WhiteElo "2313"]
[BlackElo "2192"]
[Annotator "TA"]
[PlyCount "71"]
[EventDate "2022.??.??"]
[TimeControl "60"]

{[%evp 16,71,39,25,46,38,98,17,170,146,169,159,166,151,229,168,160,129,531,525,
621,620,639,366,421,423,637,500,695,704,702,699,700,682,678,621,1454,930,1439,
1401,6286,6286,6279,6279,6279,5776,6187,5919,29983,29984,5497,1712,1686,1568,
1409,1404,1303,1127]} 1. d4 {[%emt 0:00:10]} d5 {[%emt 0:00:23]} 2. c4 {
[%emt 0:00:07]} e6 {[%emt 0:01:07]} 3. Nc3 {[%emt 0:00:07]} c6 {[%emt 0:03:44]}
4. e4 {[%emt 0:00:06]} dxe4 {[%emt 0:00:06]} 5. Nxe4 {[%emt 0:00:06]} Bb4+ {
[%emt 0:00:10]} 6. Bd2 {[%emt 0:00:06][%cal Yc1d2,Yd2b4,Yb4c3]} Qxd4 {[%emt 0:
00:15]} 7. Bxb4 {[%emt 0:00:08]} Qxe4+ {[%emt 0:00:11]} 8. Be2 {[%emt 0:00:05]}
Nd7 {[%emt 0:07:18]} 9. Nf3 {[%emt 0:00:17] White has compensation.} c5 {
[%emt 0:05:58] D31: Queen's Gambit Declined: Semi-Slav without ...Nf6 (+
Marshall Gambit and Noteboom) and Exchange Variation lines without ...Nf6.} 10.
Bc3 {[%emt 0:00:08]} f6 {[%emt 0:04:46] [#]} (10... Ngf6 $14) 11. Qd2 $146 {
[%emt 0:25:04]} (11. Nd2 $16 Qxg2 12. Bf3) ({Predecessor:} 11. O-O Ne7 12. Re1
Qc6 13. Ng5 fxg5 14. Bf3 Qa6 15. Bxg7 Rg8 16. Bh5+ Ng6 17. Qg4 {1-0 (39)
Williams,S (2545)-Ninov,N (2532) France 2009}) 11... Nb6 $2 {[%emt 0:08:16]} (
11... e5 $11 {and Black is okay.}) 12. O-O-O {[%emt 0:03:13][%cal Yf3g5]
Hoping for Ng5!} Bd7 {[%emt 0:01:22] [#]} 13. Ng5 $1 {[%emt 0:00:00]} Qg6 {
[%emt 0:02:12] [#]} (13... fxg5 $2 14. Bxg7 O-O-O 15. Bd3 (15. Qxg5 Qxe2 16.
Qxc5+ Bc6 $11) 15... Nxc4 16. Bxe4 $18) 14. Bd3 $1 {[%emt 0:00:00]} f5 {
[%emt 0:12:32]} (14... Qxg5 $2 15. Qxg5 fxg5 16. Bxg7 $18) (14... Qh6 $16 {
was called for.}) 15. h4 {[%emt 0:03:55] Threatens to win with g4.} Nf6 {
[%emt 0:08:13]} 16. h5 $36 {[%emt 0:04:12] White is on the roll. White is more
active.} Nxh5 {[%emt 0:06:20] Black cannot hold the game after this.} (16...
Qh6 $16 {is a better chance.}) 17. g4 $18 {[%emt 0:00:41] Strongly threatening
Bxf5.} h6 {[%emt 0:00:19]} 18. Rxh5 {[%emt 0:02:45][%cal Yd3f5] Bxf5! is the
strong threat.} O-O-O {[%emt 0:00:27]} 19. Nh3 {[%emt 0:06:58]} Qxg4 {[%emt 0:
01:23]} 20. Be2 {[%emt 0:00:52]} Qg2 {[%emt 0:04:14]} (20... Nxc4 $142 21. Qd3
(21. Bxg4 Nxd2 22. Rxd2 fxg4 $18) 21... Bc6) 21. Qe3 {[%emt 0:03:46]} Qc6 {
[%emt 0:03:52]} 22. Bxg7 {[%emt 0:00:00]} Rhg8 {[%emt 0:02:02]} 23. Bf6 {
[%emt 0:00:20]} Rde8 {[%emt 0:00:28]} 24. Be5 {[%emt 0:05:00] aiming for Bf3.}
Rd8 {[%emt 0:01:29]} 25. b3 {[%emt 0:00:00]} Be8 {[%emt 0:00:48]} 26. Rxd8+ {
[%emt 0:00:38]} Kxd8 {[%emt 0:00:14]} 27. Bf3 {[%emt 0:00:38]} Bxh5 {[%emt 0:
09:34]} 28. Bxc6 {[%emt 0:00:38]} bxc6 {[%emt 0:00:06]} 29. Qxh6 {[%emt 0:00:
31] Intending Qh7 and mate.} Nd7 {[%emt 0:00:00]} 30. Qxe6 {[%emt 0:02:09]} Re8
{[%emt 0:03:54]} 31. Bf6+ {[%emt 0:00:08]} Kc7 {[%emt 0:01:25]} 32. Be7 {
[%emt 0:00:19]} Nb6 {[%emt 0:02:01]} 33. Nf4 {[%emt 0:01:05] White threatens
Nd3 and mate. White is clearly winning.} Nc8 {[%emt 0:00:54]} 34. Nxh5 {
[%emt 0:00:38]} Rxe7 {[%emt 0:00:30]} 35. Qxf5 {[%emt 0:00:09]} Re2 {[%emt 0:
03:06]} 36. Nf6 {[%emt 0:00:48] Weighted Error Value: White=0.32/Black=1.17}
1-0